Cogmind - Beta 10.2 @@@ ROGUE MODE // 2021.06.29 @ 15:42:04 Player: CrossedViper Result: Destroyed by H-88 Terminator with KE Penetrator Performance ------------- Evolutions (8) 4000 Regions Visited (25) 5000 Robots Destroyed (292) 1460 Value Destroyed (14123) 14123 Prototype IDs (86) 1720 Alien Tech Used (7) 1400 Bonus (6464) 6464 TOTAL SCORE: 34167 Bonus ------- High Alert Combat Kills 2379 Follower Combat Kills 1101 Aligned with FarCom 300 Met Data Miner 300 Met Zhirov 300 Used Core Reset Matrix 3000 Friendly Fire -916 Cogmind --------- Core Integrity 0/1450 Matter 195/300 Energy 555/580 System Corruption 10% Temperature Cool (11) Movement Treading (151) Location -2/Section 7 Parts ------- > --- POWER (2) -------- Particle Reactor Graviton Reactor > --- PROPULSION (6) --- Medium Treads Advanced Medium Treads Advanced Medium Treads Advanced Medium Treads Centrium Heavy Treads > --- UTILITY (11) ----- Experimental Power Amplifier Advanced Heat Sink Advanced Heat Sink Advanced Heat Sink High-capacity Storage Unit Experimental Target Analyzer Advanced Armor Integrity Analyzer Heavy Armor Plating Ghost Barrier > --- WEAPON (4) ------- Heavy Dispersion Rifle Heavy Dispersion Rifle Heavy Dispersion Rifle Enhanced Quantum Rifle > --- INVENTORY (12) --- Experimental Power Amplifier High-capacity Storage Unit Improved Matter Compressor (300) Experimental ECM Suite System Purifier Gamma Rifle Gamma Rifle Plasma Cutter Peak State ------------ > --- POWER ------------ Cooled Fission Core Cooled Fission Core > --- PROPULSION ------- Biometal Heavy Treads Biometal Heavy Treads Biometal Heavy Treads > --- UTILITY ---------- Advanced Heat Sink High-capacity Storage Unit High-capacity Storage Unit High-capacity Storage Unit Experimental Signal Interpreter Advanced Armor Integrity Analyzer Improved Heavy Armor Plating Experimental Thermal Shield Ghost Barrier System Purifier > --- WEAPON ----------- Gamma Rifle Gamma Rifle Gamma Rifle Improved KE Penetrator > --- INVENTORY -------- Cooled Fission Core Cooled Fission Core Cooled Fission Core Advanced Medium Treads Advanced Heavy Treads Advanced Heavy Treads Advanced Coolant Injector Experimental Energy Well Long-range Sensor Array Precision Energy Filter Quantum Capacitor Experimental Weapon Shielding Medium Insulated Plating Hacking Suite Long-range Tractor Beam Transdimensional Reconstructor Nova Cannon Improved KE Penetrator Improved KE Penetrator Improved KE Penetrator Improved KE Penetrator Improved KE Penetrator Linear Accelerator Rocket Array Rocket Array [Rating: 180] Favorites ----------- Power Improved Deuterium Engine Engine Improved Deuterium Engine Power Core Cooled Fission Core Reactor Fusion Reactor Propulsion Light Treads Treads Light Treads Leg Enhanced Biometal Leg Wheel Wheel Hover Unit Cooled Gravmag System Utility High-capacity Storage Unit Device Experimental Sensor Array Storage High-capacity Storage Unit Processor Experimental Signal Interpreter Hackware Ghost Barrier Protection Hardened Light Armor Plating Weapon Heavy Assault Rifle Energy Gun Force Rifle Energy Cannon Phase Cannon Ballistic Gun Heavy Assault Rifle Ballistic Cannon Hardcell Cannon Launcher Rocket Array Special Weapon Plasma Cutter Slashing Weapon Molecular Scythe Piercing Weapon Spear Build | -11 -10 -10 -9 -9 -9 -8 -8 -7 -6 -6 -6 -6 -5 -5 -5 -5 -5 -4 -4 -3 -3 -3 -2 -2 -2 ------- Run | Scr Mat Min Mat Min Exi Min Mat Fac Fac Low Low Dat Pro Fac Upp Upp Zhi Pro Fac Res Arm Lab Res Qua Sec Slots Evolved 16 | . . . 2 . . . 2 2 2 . . . . 2 . . . . 2 2 . . 2 . . Power 1 | . . . . . . . . . 1 . . . . . . . . . . . . . . . . Propulsion 4 | . . . . . . . 1 . . . . . . 1 . . . . . . . . 2 . . Utility 9 | . . . 1 . . . . 2 1 . . . . 1 . . . . 2 2 . . . . . Weapon 2 | . . . 1 . . . 1 . . . . . . . . . . . . . . . . . . Parts Attached 433 | 6 6 7 16 . 12 6 7 18 10 19 9 15 8 16 12 21 20 10 11 3 47 . 84 37 33 Power 34 | 1 . 1 2 . . 1 1 1 1 . . 3 . 1 . 2 2 . . . 8 . 4 4 2 Engine 10 | 1 . . 2 . . 1 1 1 1 . . 1 . 1 . . . . . . . . . . 1 Core 12 | . . 1 . . . . . . . . . . . . . 1 . . . . 5 . 4 1 . Reactor 12 | . . . . . . . . . . . . 2 . . . 1 2 . . . 3 . . 3 1 Propulsion 60 | 2 . 2 2 . 3 1 1 3 2 2 . 3 1 1 . 1 3 . 2 . 7 . 9 8 7 Treads 43 | 2 . 2 2 . 3 1 1 3 2 2 . 3 1 . . . . . . . 5 . 9 2 5 Leg 14 | . . . . . . . . . . . . . . 1 . 1 2 . 2 . 1 . . 6 1 Wheel 1 | . . . . . . . . . . . . . . . . . . . . . . . . . 1 Hover 2 | . . . . . . . . . . . . . . . . . 1 . . . 1 . . . . Flight . | . . . . . . . . . . . . . . . . . . . . . . . . . . Utility 180 | 1 3 . 6 . 3 1 1 8 5 12 8 2 3 10 9 13 10 6 7 2 12 . 30 19 9 Device 89 | . . . 1 . . . . 2 2 9 3 1 1 4 6 8 5 3 3 2 6 . 19 9 5 Storage 15 | 1 1 . 1 . 1 . . 2 . . . . . . . . 1 2 . . 3 . . 2 1 Processor 9 | . 1 . . . . . . 1 . . . . 2 1 1 . . . . . 1 . . 2 . Hackware 6 | . . . . . . . . 1 1 . . . . . . . . . 3 . . . 1 . . Protection 61 | . 1 . 4 . 2 1 1 2 2 3 5 1 . 5 2 5 4 1 1 . 2 . 10 6 3 Artifact . | . . . . . . . . . . . . . . . . . . . . . . . . . . Weapon 159 | 2 3 4 6 . 6 3 4 6 2 5 1 7 4 4 3 5 5 4 2 1 20 . 41 6 15 Energy Gun 49 | . . . . . . 2 2 . . 3 1 3 1 . . . . 1 . . 2 . 18 1 15 Energy Cannon 13 | . . . . . . . . 3 . . . 1 2 1 . . 1 1 . . . . 3 1 . Ballistic Gun 57 | 2 . 3 5 . 1 1 1 . . 1 . . . 2 1 3 1 1 1 1 15 . 18 . . Ballistic Cannon 9 | . 2 . . . . . . 1 1 . . . . . . . 1 . . . 2 . 1 1 . Launcher 16 | . . 1 . . 1 . . 2 1 1 . . 1 1 2 2 . 1 1 . 1 . 1 . . Special Weapon 9 | . 1 . 1 . 4 . 1 . . . . . . . . . 2 . . . . . . . . Impact Weapon . | . . . . . . . . . . . . . . . . . . . . . . . . . . Slashing Weapon 3 | . . . . . . . . . . . . . . . . . . . . . . . . 3 . Piercing Weapon 3 | . . . . . . . . . . . . 3 . . . . . . . . . . . . . Special Melee Weapon . | . . . . . . . . . . . . . . . . . . . . . . . . . . Unidentified Prototypes 47 | . . . 2 . . . 1 2 2 . . . . 2 . . 9 . 2 . 6 . 4 8 9 Parts Lost 93 | . 1 . . . 7 5 1 3 . . . 5 1 1 1 . 3 1 . . 18 . 23 18 5 Power 8 | . . . . . 1 1 . . . . . . . . . . . . . . 2 . 1 2 1 Propulsion 20 | . . . . . 3 1 . . . . . 1 . . . . 1 . . . 2 . 4 7 1 Utility 28 | . 1 . . . . . 1 . . . . 2 . . 1 . 1 . . . 7 . 5 7 3 Weapon 37 | . . . . . 3 3 . 3 . . . 2 1 1 . . 1 1 . . 7 . 13 2 . Highest Loss Streak 13 | . 1 . . . 5 2 1 2 . . . 4 1 1 1 . 2 1 . . 6 . 13 9 2 Average Slot Usage (%) 91 | . 98 100 99 100 79 71 78 90 94 99 100 98 99 96 99 100 99 97 99 99 86 80 79 59 82 Engine 5 | . 14 11 9 11 5 5 5 7 9 13 13 10 6 9 11 8 . . . . . . . . 1 Core 1 | . . 2 1 . . . . . . . . . . . . 1 3 . . . 3 9 7 1 . Reactor 2 | . . . . . . . . . . . . 2 6 1 . . 6 11 10 9 4 . . 3 5 Treads 14 | . 28 28 22 22 22 21 27 23 20 20 20 20 20 17 17 12 7 . . . 4 9 12 2 13 Leg 4 | . . . . . . . . . . . . . . 2 5 9 11 17 16 19 9 . . 7 4 Device 9 | . . . . . . . . 6 6 8 8 9 13 8 11 10 12 19 14 22 12 4 13 15 13 Storage 11 | . 14 14 11 11 11 11 9 8 13 13 13 13 13 11 11 11 11 11 10 9 12 14 12 7 7 Processor 6 | . 3 14 1 . . . . 4 6 6 6 6 9 11 11 11 8 5 5 4 7 9 6 10 10 Hackware 2 | . . . . . . . . 3 1 . . . . . . . . . 14 14 10 4 4 4 4 Protection 6 | . 8 . 20 22 11 11 9 6 9 10 10 9 2 7 4 5 6 3 . . . 9 4 2 3 Energy Gun 3 | . . . . . . 6 9 10 . 11 20 7 8 2 . . . 2 5 4 . . 2 . 12 Energy Cannon 3 | . . . . . . . . 3 20 9 . 1 10 9 5 5 3 5 5 4 . . 1 . . Ballistic Gun 11 | . 19 14 32 33 22 4 14 11 . 2 6 6 6 9 12 10 10 2 5 6 16 19 11 . . Ballistic Cannon 1 | . 7 13 . . . . . . 5 2 . . . . . . . 5 3 . . . . . . Launcher 1 | . . . . . 4 11 3 . . . . . . . 4 5 5 3 . 1 . . . . . Naked Turns . | . . . . . . . . . . . . . . . . . . . . . . . . . . Heaviest Build 184 | 11 17 22 43 43 113 107 103 151 105 110 98 119 121 117 112 110 116 121 123 122 181 181 184 120 115 Greatest Support 225 | 40 40 40 40 40 40 40 60 68 68 68 68 76 76 76 76 76 60 60 120 120 150 150 225 210 198 Greatest Overweight (x) 7 | . . . 1 1 2 2 1 2 1 1 1 1 1 1 1 1 4 2 2 1 2 1 1 2 7 Average Overweight (x) . | . . . . 1 1 2 1 1 1 1 1 1 1 1 1 1 1 1 1 . . 1 . . 1 Largest Inventory Capacity 38 | 6 8 8 10 10 30 24 24 38 18 18 18 18 18 18 18 18 18 18 18 18 28 28 28 20 12 Average Capacity 18 | 5 6 8 8 10 22 24 24 23 18 18 18 18 18 18 18 18 18 18 18 18 25 28 26 11 12 Most Carried 28 | 2 6 8 10 10 21 13 17 24 18 18 18 18 18 18 18 18 18 18 17 18 28 27 28 19 12 Average Carried 15 | 1 4 6 8 10 13 11 13 21 17 17 17 17 17 17 16 17 15 17 15 16 17 27 23 8 9 Final Capacity 28 | 6 8 8 10 10 24 24 24 18 18 18 18 18 18 18 18 18 18 18 18 18 28 28 20 12 12 Final Carried 27 | 2 6 8 10 10 12 12 17 18 17 18 18 18 18 18 17 18 18 17 17 18 27 27 19 8 8 Class Distribution -------------------- 20% | Scavenger-Skirmisher 19% | Scavenger-Mutant 17% | Scavenger-Tank 7% | Hauler-Tank 6% | Hauler-Mutant 6% | Scavenger-Gunner 5% | Mutant Dominant Class ---------------- Mutant | -10/Materials Mutant | -10/Mines Scavenger-Tank | -9/Materials Scavenger-Tank | -9/Mines Hauler-Mutant | -9/Exiles Hauler-Mutant | -8/Mines Scavenger-Tank | -8/Materials Scavenger-Gunner | -7/Factory Gunner | -6/Factory Scavenger-Tank | -6/Lower Caves Scavenger-Tank | -6/Lower Caves Scavenger-Mutant | -6/Data Miner Scavenger-Skirmisher | -5/Proximity Caves Scavenger-Mutant | -5/Factory Scavenger-Skirmisher | -5/Upper Caves Scavenger-Skirmisher | -5/Upper Caves Scavenger-Mutant | -5/Zhirov Scavenger-Mutant | -4/Proximity Caves Wizard-Tank | -4/Factory Wizard-Skirmisher | -3/Research Wizard-Gunner | -3/Armory Wizard-Gunner | -3/Lab Hauler-Tank | -2/Research Scavenger-Mutant | -2/Quarantine Scavenger-Mutant | -2/Section 7 Resources | -11 -10 -10 -9 -9 -9 -8 -8 -7 -6 -6 -6 -6 -5 -5 -5 -5 -5 -4 -4 -3 -3 -3 -2 -2 -2 ----------- Run | Scr Mat Min Mat Min Exi Min Mat Fac Fac Low Low Dat Pro Fac Upp Upp Zhi Pro Fac Res Arm Lab Res Qua Sec Matter Collected 10193 | 260 232 36 671 . 449 253 64 236 155 317 95 135 145 252 195 509 372 244 177 95 2326 . 1934 294 747 Remotely 771 | . . . . . . . . . . 140 . . . . . . . . . . . . 631 . . Salvage Created 14689 | . 482 95 1178 . 90 304 121 359 158 505 140 427 316 565 466 492 495 282 205 95 1938 . 4581 389 1006 Parts 801 | . 20 12 59 . 24 18 14 27 4 25 10 16 25 37 21 13 32 7 9 1 119 . 242 19 47 Haulers Intercepted 7 | . 1 . 2 . . . . 1 . . . . . . . . . . . . . . 2 1 . Recyclers Shooed 8 | . 1 . 3 . . . 1 1 . . . . . . . . . . . . . . 1 1 . Parts Field Recycled . | . . . . . . . . . . . . . . . . . . . . . . . . . . Retrieved Matter . | . . . . . . . . . . . . . . . . . . . . . . . . . . Parts Self-Destructed 102 | . . . . . . . . . . 15 22 . 25 . 11 10 16 3 . . . . . . . Prevented 12 | . . . . . . . . . . . . . 3 . 4 5 . . . . . . . . . Kills | -11 -10 -10 -9 -9 -9 -8 -8 -7 -6 -6 -6 -6 -5 -5 -5 -5 -5 -4 -4 -3 -3 -3 -2 -2 -2 ------- Run | Scr Mat Min Mat Min Exi Min Mat Fac Fac Low Low Dat Pro Fac Upp Upp Zhi Pro Fac Res Arm Lab Res Qua Sec Combat Hostiles Destroyed 228 | . 10 5 15 . 1 10 2 9 2 7 2 4 8 8 17 13 . 12 5 1 25 . 56 2 14 Melee 7 | . . . . . . . . . . . . 4 . . . . . . . . 1 . . 1 1 Guns 118 | . 3 . 15 . . 1 1 6 . 2 2 . 3 3 3 3 . 2 3 1 21 . 36 . 13 Cannons 36 | . 7 2 . . 1 . . . 2 3 . . . 2 . 3 . 2 2 . . . 11 1 . AOE 62 | . . 3 . . . 9 1 3 . 2 . . 5 3 14 7 . 8 . . 2 . 5 . . Classes Destroyed 25 | . 5 1 2 . 2 2 . 1 . 1 1 . 2 2 1 . . . . . 3 . . 1 1 Worker 11 | . . . 1 . . . . . 2 . . . . . . . . . . . . . 8 . . Builder 13 | . 1 . . . . . . . . . . . . 3 . . . . . . . . 7 . 2 Tunneler 2 | . . . . . . . . . . . . . . 1 . . . . . . . . 1 . . Hauler 7 | . 1 . 2 . . . . 1 . . . . . . . . . . . . . . 2 1 . Recycler 9 | . 1 . 4 . . 1 . . . . . . . 1 . . . . . . . . 1 1 . Minesweeper 2 | . . . . . . . . . . . . . 1 . 1 . . . . . . . . . . Mechanic 1 | . . . . . . . . . . . . . . . . . . . . . . . . . 1 Operator 2 | . . . . . . . . . . . . . . 1 . . . . . . . . 1 . . Turret 1 | . . . . . 1 . . . . . . . . . . . . . . . . . . . . Watcher 9 | . 1 . 1 . . . 1 . 1 . . . . . . . . . . . 3 . 1 . 1 Swarmer 42 | . . 3 . . . 5 . 4 . . . . 5 . 9 . . 5 1 . 3 . 7 . . Saboteur 1 | . . . . . . . . . . . . . . . . . . . . . 1 . . . . Grunt 83 | . 10 2 8 . . 4 . 3 . 4 1 . . 5 3 12 . 5 1 . 2 . 16 . 7 Brawler 6 | . . . . . . . . . . . . . . . 2 . . 1 . . 2 . 1 . . Duelist 5 | . . . . . . 1 . . . 1 . . . . 2 . . . . . . . 1 . . Protector 1 | . . . . . . . . . . . . . . . . . . . . . 1 . . . . Sentry 25 | . . . 7 . . . 2 . 1 1 . . . . 1 . . 1 1 1 3 . 5 . 2 Demolisher 1 | . . . . . . . . . . . . . . . . . . . . . 1 . . . . Hunter 13 | . . . . . . . . . . . 1 . 2 1 . . . . . . 3 . 5 1 . Programmer 42 | . . . . . . . . 2 1 . . . . 2 . 1 . . 2 . 10 . 19 . 5 Behemoth 3 | . . . . . . . . . . . . . 1 . . . . . . . . . 2 . . Enhanced Grunt 4 | . . . . . . . . . . . . 4 . . . . . . . . . . . . . Alpha 7 1 | . . . . . . . . . . . . . . . . . . . . . . . . 1 . Zionite 1 | . . . . . . 1 . . . . . . . . . . . . . . . . . . . Decomposer 1 | . . . . . . . . . . . . . . . 1 . . . . . . . . . . Assembled 2 | . . . . . 1 . . . . . . . . . . . . . . . . . . . 1 Mutant 2 | . . . . . . . . . . 2 . . . . . . . . . . . . . . . Best Kill Streak 15 | . 4 3 6 . 1 3 1 4 2 3 1 1 5 10 8 4 1 6 2 1 4 . 15 1 3 Combat Bots Only 8 | . 3 3 2 . 1 3 1 4 1 3 1 1 5 3 8 4 . 6 2 1 4 . 7 1 3 Max Kills in Single Turn 7 | . 1 3 1 . 1 2 1 3 2 2 1 1 5 3 7 3 1 5 1 1 2 . 5 1 2 Gunslinging 1 | . . . . . . . . . . . . . . . . . . . . . . . 1 . 1 Exploded 7 | . . 3 . . . 2 1 3 . 2 . . 5 3 7 3 . 5 . . 1 . 3 . . Melee 1 | . . . . . . . . . . . . 1 . . . . . . . . 1 . . 1 1 Uniques/NPCs Destroyed 7 | . . . . . 4 . . . . . . 1 . . . . 2 . . . . . . . . 8R-AWN (-9/Exiles) EX-BIN (-9/Exiles) EX-HEX (-9/Exiles) EX-DEC (-9/Exiles) Data Miner (-6/Data Miner) Zhirov (-5/Zhirov) Perun (-5/Zhirov) Combat | -11 -10 -10 -9 -9 -9 -8 -8 -7 -6 -6 -6 -6 -5 -5 -5 -5 -5 -4 -4 -3 -3 -3 -2 -2 -2 -------- Run | Scr Mat Min Mat Min Exi Min Mat Fac Fac Low Low Dat Pro Fac Upp Upp Zhi Pro Fac Res Arm Lab Res Qua Sec Damage Taken 29494 | . 469 144 509 . 1063 382 210 696 252 227 257 1138 318 402 437 361 757 282 339 102 4496 . 11407 3525 1721 Core 2462 | . 25 7 50 . 93 105 14 41 35 13 . 138 11 19 30 11 52 42 18 . 481 . 498 522 257 Absorbed by Shields 1294 | . . . . . . . . . . 67 . 302 219 . 37 69 . . 160 106 334 . . . . Reduced by Siege Mode 917 | . . . . . . . . . . . . . . . . . . . . . 26 . 832 59 . Core Remaining (%) 81 | 100 . 87 . . . 38 97 94 . . . . 76 . . . . 84 98 . . 57 . . . Volleys Fired 841 | . 46 6 55 . 57 15 17 25 6 16 6 3 13 31 14 24 39 11 23 7 97 . 220 21 89 Largest 4 | . 2 2 3 . 3 3 4 4 4 4 4 1 4 4 3 3 3 4 3 4 4 . 4 1 4 Hottest 376 | . 55 55 69 . 69 170 149 225 273 273 268 80 278 221 148 148 144 290 200 258 190 . 260 113 376 Shots Fired 1856 | . 88 11 150 . 114 17 24 67 22 46 19 3 43 52 33 62 64 30 47 13 311 . 444 20 176 Gun 1441 | . 57 5 148 . 104 6 20 62 . 28 19 3 31 20 18 35 21 8 24 10 307 . 337 2 176 Cannon 325 | . 30 5 . . . . . 3 22 16 . . 11 31 10 21 13 14 23 3 1 . 104 18 . Launcher 45 | . . 1 . . 1 11 1 2 . 2 . . 1 1 5 6 . 8 . . 3 . 3 . . Special 45 | . 1 . 2 . 9 . 3 . . . . . . . . . 30 . . . . . . . . Kinetic 1117 | . 87 10 148 . 104 . 18 43 4 4 1 1 12 15 18 35 21 10 25 8 298 . 248 7 . Thermal 564 | . 1 . 2 . 6 6 4 18 18 40 18 2 27 35 10 21 43 8 20 3 . . 104 13 165 Explosive 45 | . . 1 . . 1 11 1 2 . 2 . . 1 1 5 6 . 8 . . 3 . 3 . . Electromagnetic 127 | . . . . . . . 1 4 . . . . 3 1 . . . 4 2 2 10 . 89 . 11 Robot Hit Streak 25 | . 10 10 16 . 18 2 22 25 5 23 14 9 10 7 8 6 16 17 19 10 18 . 24 6 20 Robot Miss Streak 5 | . 3 1 4 . 5 1 . 2 1 2 1 . 4 4 4 3 1 2 2 5 4 . 5 2 2 Penetration Max 2 | . . . . . . . . . . . . . . . . . . . . . 2 . 1 . . Secondary Targets 27 | . . . 1 . . . . 2 . . . . . . . . . . . . 3 . 17 . 4 Max Gunslinging Chain 2 | . . . 1 . . . . 1 . . . . . . . . . . . . 1 . 2 . 2 Capacitor 120 | . . . . . . . . . . . . . . . . . . . . . . . 120 . . Shots Hit Robots 1302 | . 60 9 103 . 102 6 20 48 16 33 17 37 30 24 19 37 56 19 25 9 200 . 335 22 75 Core Hits 793 | . 25 7 50 . 27 14 9 19 4 27 8 21 29 33 57 56 16 50 14 5 92 . 188 8 34 Critical Hits 141 | . 2 . 1 . 3 . 1 1 . 1 1 2 2 . . . 3 . . 1 56 . 56 . 11 Critical Kills 52 | . 2 . . . . . . . . . . . 1 . . . . . . . 20 . 20 . 9 Critical Parts Destroyed 82 | . . . 1 . 1 . . 1 . 1 1 2 . . . . 3 . . 1 35 . 34 . 2 Melee Attacks 76 | . . . . . . . . . . . . 61 . . . . . . . . . . . 15 . Impact . | . . . . . . . . . . . . . . . . . . . . . . . . . . Slashing 15 | . . . . . . . . . . . . . . . . . . . . . . . . 15 . Piercing 61 | . . . . . . . . . . . . 61 . . . . . . . . . . . . . Sneak Attacks 3 | . . . . . . . . . . . . 1 . . . . . . . . . . . 2 . Combat Hostiles . | . . . . . . . . . . . . . . . . . . . . . . . . . . Follow-up Attacks 7 | . . . . . . . . . . . . 7 . . . . . . . . . . . . . Damage Inflicted 38474 | . 710 265 1492 . 1378 1053 283 1005 554 1041 449 1086 1186 1309 1931 2117 878 1506 832 241 3164 . 12720 1191 2083 Guns 18709 | . 321 39 1462 . 1345 64 145 524 . 557 449 33 515 259 223 367 289 134 402 196 2209 . 7105 . 2071 Cannons 7808 | . 365 71 . . . . . 75 475 300 . . 245 337 214 450 308 251 430 34 . . 3785 468 . Explosions 9459 | . . 153 . . . 989 107 406 . 184 . . 426 665 1494 1300 . 1121 . . 903 . 1711 . . Melee 1776 | . . . . . . . . . . . . 1053 . . . . . . . . . . . 723 . Ramming 354 | . 12 2 19 . . . . . 79 . . . . 48 . . . . . 11 52 . 119 . 12 Kinetic 13841 | . 686 110 1462 . 1345 . 124 286 121 96 38 . 164 163 223 367 289 126 419 156 2092 . 5422 152 . Thermal 10788 | . 12 . 11 . 33 64 74 269 354 761 411 33 542 393 214 450 589 172 387 34 . . 3785 316 1884 Explosive 9416 | . . 153 . . . 989 64 406 . 184 . . 426 665 1494 1300 . 1121 . . 903 . 1711 . . Electromagnetic 2299 | . . . . . . . 21 44 . . . . 54 40 . . . 87 26 40 117 . 1683 . 187 Impact . | . . . . . . . . . . . . . . . . . . . . . . . . . . Slashing 723 | . . . . . . . . . . . . . . . . . . . . . . . . 723 . Piercing 1053 | . . . . . . . . . . . . 1053 . . . . . . . . . . . . . Highest Corruption 30 | . . . . . . . . 1 3 3 . . . 2 2 2 7 7 4 . 25 25 24 30 25 Average Corruption 11 | . . . . . . . . 1 2 2 . . . 1 1 1 6 5 1 . 13 25 12 23 19 Corruption Purged 41 | . . . . . . . . . . 3 . . . . 2 2 . 7 . . . . 11 12 4 Effects 357 | . . . . . . . . 3 5 9 . . . 4 . . 9 22 5 . 70 1 121 68 40 Message Errors 54 | . . . . . . . . 3 1 3 . . . . . . 2 3 2 . 6 . 14 14 6 Matter Fused 48 | . . . . . . . . . 2 1 . . . . . . 3 8 . . 8 . 14 7 5 Heat Flow Errors 30 | . . . . . . . . . . 2 . . . . . . 1 3 2 . 5 . 9 7 1 Energy Discharges 25 | . . . . . . . . . 2 2 . . . 1 . . 3 1 1 . 4 . 4 4 3 Parts Rejected 2 | . . . . . . . . . . . . . . . . . . . . . . . 1 . 1 Data Loss (minor) 29 | . . . . . . . . . . 1 . . . 2 . . . 3 . . 6 . 4 9 4 Data Loss (major) 6 | . . . . . . . . . . . . . . . . . . . . . 1 . 4 1 . Misfires 7 | . . . . . . . . . . . . . . . . . . 1 . . 1 . 3 . 2 Alerts 7 | . . . . . . . . . . . . . . . . . . . . . 1 1 1 2 2 Misdirections 29 | . . . . . . . . . . . . . . . . . . . . . 4 . 7 13 5 Targeting Errors 107 | . . . . . . . . . . . . . . 1 . . . 3 . . 31 . 53 10 9 Weapon Failures 13 | . . . . . . . . . . . . . . . . . . . . . 3 . 7 1 2 Overload Shots . | . . . . . . . . . . . . . . . . . . . . . . . . . . Overflow Damage 631 | . . . . . . 126 14 36 64 . . . 33 15 32 48 2 20 . . . . 197 44 . Projectiles 311 | . . . . . . . . . 54 . . . 23 10 26 21 2 . . . . . 144 31 . Explosions 288 | . . . . . . 126 14 36 . . . . 10 5 6 27 . 20 . . . . 44 . . Melee 32 | . . . . . . . . . 10 . . . . . . . . . . . . . 9 13 . Knockbacks 9 | . 2 . . . . . . . 3 . . . . 1 . . . . . . . . . 3 . Impact 3 | . . . . . . . . . 2 . . . . 1 . . . . . . . . . . . Kinetic 6 | . 2 . . . . . . . 1 . . . . . . . . . . . . . . 3 . Secondary . | . . . . . . . . . . . . . . . . . . . . . . . . . . Self-Inflicted Damage 531 | . . . . . . 155 . . . 109 . . . 44 43 62 . 66 . 5 47 . . . . Shots 20 | . . . . . . 4 . . . 5 . . . 2 2 3 . 3 . . 1 . . . . Rammed 21 | . 2 1 5 . . . . . 3 . . . . 2 . . . . . 1 3 . 4 . . Targets Rammed 25 | . 4 1 5 . . . . . 4 . . . . 2 . . . . . 1 3 . 4 . 1 Kicked . | . . . . . . . . . . . . . . . . . . . . . . . . . . Crushed 4 | . 2 . . . . . . . 1 . . . . . . . . . . . . . . . 1 Highest Temperature 443 | . 147 53 147 . 52 210 87 354 327 433 279 . 339 286 234 199 333 192 306 202 443 . 324 133 293 Average Temperature 92 | . 44 32 35 . 21 99 38 130 148 160 91 . 152 101 88 97 142 85 84 102 124 . 92 68 106 Received Heat Transfer 2979 | . 219 57 219 . . 45 63 126 60 66 30 147 36 72 54 77 18 39 51 12 193 . 972 189 234 Effects 7 | . . . . . . . . 1 . 2 . . 3 . . . 1 . . . . . . . . Energy Bleed 1 | . . . . . . . . 1 . . . . . . . . . . . . . . . . . Interference 4 | . . . . . . . . . . . . . 3 . . . 1 . . . . . . . . Damage (major) 2 | . . . . . . . . . . 2 . . . . . . . . . . . . . . . Siege Activations 17 | . . . . . . . . . . . . . . . . . . . . . 3 . 13 1 . Total Turns 376 | . . . . . . . . . . . . . . . . . . . . . 42 . 316 18 . Longest Duration 67 | . . . . . . . . . . . . . . . . . . . . . 20 . 67 18 . Robots Corrupted 6 | . . . . . . . . . . . . . . 1 . . . . . . 1 . 4 . . Combat Hostiles 5 | . . . . . . . . . . . . . . . . . . . . . 1 . 4 . . Parts Fried 17 | . . . . . . . . . 1 . . . . . . . . . . . 2 . 11 . 3 Impact Corruptions 3 | . . . . . . . . . 1 . . . . 1 . . . . . . . . 1 . . Robots Melted . | . . . . . . . . . . . . . . . . . . . . . . . . . . Combat Hostiles . | . . . . . . . . . . . . . . . . . . . . . . . . . . Parts Melted 22 | . . . . . . . . . . 1 . 2 3 . . 1 1 . . . . . 12 . 2 Heat Transferred 13005 | . 37 . 37 . 92 111 111 555 444 1147 629 74 740 481 259 518 1221 185 370 37 . . 3330 296 2331 Parts Sabotaged 2 | . . . . . . . . . . . . . . . . . . . . . 2 . . . . Parts Stolen . | . . . . . . . . . . . . . . . . . . . . . . . . . . Parts Stripped . | . . . . . . . . . . . . . . . . . . . . . . . . . . Power Chain Reactions 1 | . . . . . . . 1 . . . . . . . . . . . . . . . . . . Missiles Intercepted . | . . . . . . . . . . . . . . . . . . . . . . . . . . Alert | -11 -10 -10 -9 -9 -9 -8 -8 -7 -6 -6 -6 -6 -5 -5 -5 -5 -5 -4 -4 -3 -3 -3 -2 -2 -2 ------- Run | Scr Mat Min Mat Min Exi Min Mat Fac Fac Low Low Dat Pro Fac Upp Upp Zhi Pro Fac Res Arm Lab Res Qua Sec Peak Influence 1193 | . 194 140 238 60 . 310 141 584 496 . . . . 442 . . . . 518 335 1009 . 1193 700 563 Initial 654 | . . 75 27 60 . . 42 63 179 . . . . . . . . . . 271 175 . . 654 251 Average 341 | . 63 115 132 57 . 228 86 338 342 . . . . 147 . . . . 66 295 740 . 534 567 386 Maximum Alert Level 4 | . . . 1 . . 1 . 2 2 . . . . 2 . . . . 2 1 3 . 4 3 2 Low Security (%) 42 | 100 100 100 81 100 . 27 100 29 21 . . . . 69 . . . . 99 . 4 . 21 . . Level 1 19 | . . . 18 . . 72 . 29 46 . . . . 8 . . . . . 100 5 . 22 . 49 Level 2 24 | . . . . . . . . 40 31 . . . . 21 . . . . . . 14 . 26 99 50 Level 3 11 | . . . . . . . . . . . . . . . . . . . . . 76 . 17 . . Level 4 1 | . . . . . . . . . . . . . . . . . . . . . . . 11 . . Level 5 . | . . . . . . . . . . . . . . . . . . . . . . . . . . High Security . | . . . . . . . . . . . . . . . . . . . . . . . . . . Max Security . | . . . . . . . . . . . . . . . . . . . . . . . . . . Squads Dispatched 43 | . 4 . 3 . . . 1 2 1 . . . . 3 . . . . 2 . 6 . 13 4 4 Investigation 9 | . 3 . 1 . . . . 1 1 . . . . . . . . . . . . . 3 . . Extermination 17 | . . . . . . . . 1 . . . . . 1 . . . . 1 . 5 . 5 2 2 Reinforcement 13 | . 1 . 2 . . . 1 . . . . . . 2 . . . . 1 . . . 3 1 2 Assault 3 | . . . . . . . . . . . . . . . . . . . . . 1 . 1 1 . Garrison 1 | . . . . . . . . . . . . . . . . . . . . . . . 1 . . Intercept . | . . . . . . . . . . . . . . . . . . . . . . . . . . Construction Impeded 3 | . . . . . . . . . . . . . . 1 . . . . . . . . 2 . . Haulers Reinforced 3 | . . . . . . . . . . . . . . . . . . . 1 . . . 1 1 . Stealth | -11 -10 -10 -9 -9 -9 -8 -8 -7 -6 -6 -6 -6 -5 -5 -5 -5 -5 -4 -4 -3 -3 -3 -2 -2 -2 --------- Run | Scr Mat Min Mat Min Exi Min Mat Fac Fac Low Low Dat Pro Fac Upp Upp Zhi Pro Fac Res Arm Lab Res Qua Sec Distress Signals 12 | . . . 1 . . . 2 . 1 . . . . 1 . . . . . . 3 . 2 2 . Communications Jammed 69 | . . . . . . . . . . . . . . . . . . . . . 69 . . . . Distress Signals 69 | . . . . . . . . . . . . . . . . . . . . . 69 . . . . Times Spotted 405 | . 18 5 26 . 25 12 4 9 9 7 6 4 7 10 16 13 4 12 10 2 60 . 86 24 36 Peak Tracking Total 10 | . 3 3 3 . 10 4 2 4 4 3 3 2 5 4 7 4 3 6 2 1 7 . 9 4 9 Tactical Retreats 24 | . . . 1 . 6 2 . . 1 . . . . 1 . . . . . . . . 5 4 4 Traps | -11 -10 -10 -9 -9 -9 -8 -8 -7 -6 -6 -6 -6 -5 -5 -5 -5 -5 -4 -4 -3 -3 -3 -2 -2 -2 ------- Run | Scr Mat Min Mat Min Exi Min Mat Fac Fac Low Low Dat Pro Fac Upp Upp Zhi Pro Fac Res Arm Lab Res Qua Sec Traps Triggered 22 | . 3 . 1 . . . . 1 1 . . . . 1 . . . . 1 . 6 . 3 5 . Indirectly . | . . . . . . . . . . . . . . . . . . . . . . . . . . Trap Hack Attempts . | . . . . . . . . . . . . . . . . . . . . . . . . . . Triggered . | . . . . . . . . . . . . . . . . . . . . . . . . . . Disarmed . | . . . . . . . . . . . . . . . . . . . . . . . . . . Reprogrammed . | . . . . . . . . . . . . . . . . . . . . . . . . . . Reused 2 | . . . . . . . . . . . . . 1 . . . 1 . . . . . . . . Traps Extracted . | . . . . . . . . . . . . . . . . . . . . . . . . . . Installed 11 | . . . . . . . . . . . . . 4 . . . 7 . . . . . . . . Triggered 7 | . . . . . . . . . . . . . 4 . 2 . . 1 . . . . . . . Exploded 3 | . . . . . 3 . . . . . . . . . . . . . . . . . . . . Machines | -11 -10 -10 -9 -9 -9 -8 -8 -7 -6 -6 -6 -6 -5 -5 -5 -5 -5 -4 -4 -3 -3 -3 -2 -2 -2 ---------- Run | Scr Mat Min Mat Min Exi Min Mat Fac Fac Low Low Dat Pro Fac Upp Upp Zhi Pro Fac Res Arm Lab Res Qua Sec Machines Disabled 39 | . . . . . 4 . 1 . 1 1 . 1 . 9 1 . . . . . 5 . 4 2 10 Max in Single Turn 5 | . . . . . 1 . 1 . 1 1 . 1 . 5 1 . . . . . 4 . 1 1 1 Garrison Access 1 | . . . . . . . . . 1 . . . . . . . . . . . . . . . . Machines Sabotaged . | . . . . . . . . . . . . . . . . . . . . . . . . . . Garrisons Compromised . | . . . . . . . . . . . . . . . . . . . . . . . . . . Overloaded Fab Kills . | . . . . . . . . . . . . . . . . . . . . . . . . . . Fab Network Shutdowns 2 | . . . . . . . . 1 . . . . . . . . . . 1 . . . . . . Hacking | -11 -10 -10 -9 -9 -9 -8 -8 -7 -6 -6 -6 -6 -5 -5 -5 -5 -5 -4 -4 -3 -3 -3 -2 -2 -2 --------- Run | Scr Mat Min Mat Min Exi Min Mat Fac Fac Low Low Dat Pro Fac Upp Upp Zhi Pro Fac Res Arm Lab Res Qua Sec Machines Accessed 57 | . 4 1 2 . 2 . . 5 4 1 . 4 . 2 1 1 5 . 7 1 8 . 6 2 1 Terminals 27 | . 2 . 2 . . . . 1 2 . . . . 1 . . . . 5 1 5 . 5 2 1 Fabricators 7 | . . . . . . . . 1 1 . . . . . . . . . 1 . 3 . 1 . . Repair Stations 1 | . . . . . . . . 1 . . . . . . . . . . . . . . . . . Recycling Units 3 | . 2 . . . . . . 1 . . . . . . . . . . . . . . . . . Scanalyzers 2 | . . . . . . . . . . . . . . 1 . . . . 1 . . . . . . Garrison Access 2 | . . . . . . . . 1 1 . . . . . . . . . . . . . . . . Total Hacks 216 | . 15 1 5 . 2 . . 11 9 1 . 24 . 8 1 1 18 . 51 1 38 . 26 3 1 Successful 126 | . 8 1 1 . 2 . . 4 3 1 . 24 . 6 1 1 18 . 26 . 23 . 6 . 1 Failed 89 | . 7 . 4 . . . . 7 6 . . . . 2 . . . . 24 1 15 . 20 3 . Catastrophic 25 | . 1 . . . . . . 2 1 . . . . . . . . . 5 1 6 . 7 2 . Database Lockouts 1 | . . . . . . . . . . . . . . . . . . . 1 . . . . . . Manual 99 | . 16 . 5 . 1 . . 4 6 . . . . 5 . . . . 35 1 16 . 8 2 . Terminals 117 | . 13 . 5 . . . . 3 5 . . . . 7 . . . . 40 1 18 . 21 3 1 Fabricators 39 | . . . . . . . . 3 2 . . . . . . . . . 9 . 20 . 5 . . Repair Stations 2 | . . . . . . . . 2 . . . . . . . . . . . . . . . . . Recycling Units 3 | . 2 . . . . . . 1 . . . . . . . . . . . . . . . . . Scanalyzers 3 | . . . . . . . . . . . . . . 1 . . . . 2 . . . . . . Garrison Access 4 | . . . . . . . . 2 2 . . . . . . . . . . . . . . . . Terminal Hacks 78 | . 3 1 . . 2 . . . 1 1 . 24 . 3 1 1 18 . 13 . 6 . 3 . 1 Record 19 | . . . . . 1 . . . . . . 11 . . . . 6 . 1 . . . . . . Part Schematic 14 | . . . . . . . . . . . . 5 . . . . 4 . 5 . . . . . . Robot Schematic 5 | . . . . . . . . . . . . 5 . . . . . . . . . . . . . Robot Analysis 7 | . 2 . . . . . . . . . . . . . . . 4 . 1 . . . . . . Prototype ID Bank 7 | . . . . . . . . . . . . 3 . . . . 4 . . . . . . . . Open Door 6 | . . 1 . . . . . . . 1 . . . . 1 1 . . . . 2 . . . . Level Access Points 1 | . . . . . . . . . . . . . . . . . . . 1 . . . . . . Branch Access Points 4 | . 1 . . . . . . . 1 . . . . . . . . . 1 . . . 1 . . Machine Index 1 | . . . . . . . . . . . . . . . . . . . 1 . . . . . . Terminal Index 4 | . . . . . . . . . . . . . . 1 . . . . 1 . 1 . 1 . . Fabricator Index 2 | . . . . . . . . . . . . . . . . . . . 1 . 1 . . . . Scanalyzer Index 1 | . . . . . . . . . . . . . . . . . . . 1 . . . . . . Alert Level 2 | . . . . . . . . . . . . . . . . . . . . . 1 . 1 . . Unreport Threat 1 | . . . . . . . . . . . . . . . . . . . . . 1 . . . . Locate Traps 1 | . . . . . . . . . . . . . . 1 . . . . . . . . . . . Investigation Status 1 | . . . . . . . . . . . . . . 1 . . . . . . . . . . . Hauler Manifests 1 | . . . . . . . . . . . . . . . . . . . . . . . . . 1 EX-Prototype ID Bank 1 | . . . . . 1 . . . . . . . . . . . . . . . . . . . . Fabricator Hacks 19 | . . . . . . . . 1 . . . . . . . . . . 4 . 13 . 1 . . Network Status 1 | . . . . . . . . . . . . . . . . . . . . . 1 . . . . Load Schematic 7 | . . . . . . . . . . . . . . . . . . . 1 . 5 . 1 . . Build 11 | . . . . . . . . 1 . . . . . . . . . . 3 . 7 . . . . Repair Station Hacks 2 | . . . . . . . . 2 . . . . . . . . . . . . . . . . . Scan Component 1 | . . . . . . . . 1 . . . . . . . . . . . . . . . . . Repair 1 | . . . . . . . . 1 . . . . . . . . . . . . . . . . . Recycling Unit Hacks . | . . . . . . . . . . . . . . . . . . . . . . . . . . Scanalyzer 2 | . . . . . . . . . . . . . . 1 . . . . 1 . . . . . . Insert Component 2 | . . . . . . . . . . . . . . 1 . . . . 1 . . . . . . Garrison Access Hacks . | . . . . . . . . . . . . . . . . . . . . . . . . . . Unauthorized Hacks 25 | . 5 . 1 . . . . 1 2 . . . . 2 . . . . 8 . 4 . 2 . . Terminals 16 | . 3 . 1 . . . . . . . . . . 2 . . . . 6 . 2 . 2 . . Track 5 | . 1 . 1 . . . . . . . . . . 1 . . . . 1 . . . 1 . . Assimilate 1 | . . . . . . . . . . . . . . . . . . . 1 . . . . . . Botnet 8 | . 1 . . . . . . . . . . . . 1 . . . . 3 . 2 . 1 . . Operators 2 | . 1 . . . . . . . . . . . . . . . . . 1 . . . . . . Fabricators 5 | . . . . . . . . . 1 . . . . . . . . . 2 . 2 . . . . Prioritize 2 | . . . . . . . . . . . . . . . . . . . 1 . 1 . . . . Siphon 2 | . . . . . . . . . . . . . . . . . . . 1 . 1 . . . . Haulers 1 | . . . . . . . . . 1 . . . . . . . . . . . . . . . . Repair Stations . | . . . . . . . . . . . . . . . . . . . . . . . . . . Recycling Units 3 | . 2 . . . . . . 1 . . . . . . . . . . . . . . . . . Tunnel 3 | . 2 . . . . . . 1 . . . . . . . . . . . . . . . . . Scanalyzers . | . . . . . . . . . . . . . . . . . . . . . . . . . . Garrison Access 1 | . . . . . . . . . 1 . . . . . . . . . . . . . . . . Jam 1 | . . . . . . . . . 1 . . . . . . . . . . . . . . . . Data Cores Recovered 1 | . . . . . . . . . . . . . . . . . . . . . . . 1 . . Used . | . . . . . . . . . . . . . . . . . . . . . . . . . . Hacking Detections 35 | . 2 . 2 . . . . 3 4 . . . . 1 . . . . 7 1 7 . 6 2 . Full Trace Events 2 | . . . . . . . . . . . . . . . . . . . . . . . 2 . . Feedback Events . | . . . . . . . . . . . . . . . . . . . . . . . . . . Feedback Blocked . | . . . . . . . . . . . . . . . . . . . . . . . . . . Robot Schematics Acquired 5 | . . . . . . . . . . . . 5 . . . . . . . . . . . . . Robots Built . | . . . . . . . . . . . . . . . . . . . . . . . . . . Matter . | . . . . . . . . . . . . . . . . . . . . . . . . . . Time . | . . . . . . . . . . . . . . . . . . . . . . . . . . Total Robot Build Rating . | . . . . . . . . . . . . . . . . . . . . . . . . . . Part Schematics Acquired 14 | . . . . . . . . . . . . 5 . . . . 4 . 5 . . . . . . Parts Built 14 | . . . . . . . . 2 . . . . . . . . . . 3 . 9 . . . . Matter 1961 | . . . . . . . . 234 . . . . . . . . . . 704 . 1023 . . . . Time 388 | . . . . . . . . 58 . . . . . . . . . . 119 . 211 . . . . Total Part Build Rating 81 | . . . . . . . . 14 . . . . . . . . . . 26 . 41 . . . . Parts Repaired 1 | . . . . . . . . 1 . . . . . . . . . . . . . . . . . Time 38 | . . . . . . . . 38 . . . . . . . . . . . . . . . . . Parts Recycled . | . . . . . . . . . . . . . . . . . . . . . . . . . . Recycled Matter . | . . . . . . . . . . . . . . . . . . . . . . . . . . Retrieved Matter . | . . . . . . . . . . . . . . . . . . . . . . . . . . Retrieved Components . | . . . . . . . . . . . . . . . . . . . . . . . . . . Parts Scanalyzed . | . . . . . . . . . . . . . . . . . . . . . . . . . . Part Schematics Acquired . | . . . . . . . . . . . . . . . . . . . . . . . . . . Parts Damaged . | . . . . . . . . . . . . . . . . . . . . . . . . . . Bothacking | -11 -10 -10 -9 -9 -9 -8 -8 -7 -6 -6 -6 -6 -5 -5 -5 -5 -5 -4 -4 -3 -3 -3 -2 -2 -2 ------------ Run | Scr Mat Min Mat Min Exi Min Mat Fac Fac Low Low Dat Pro Fac Upp Upp Zhi Pro Fac Res Arm Lab Res Qua Sec Used RIF Installer . | . . . . . . . . . . . . . . . . . . . . . . . . . . Robots Hacked . | . . . . . . . . . . . . . . . . . . . . . . . . . . Non-combat . | . . . . . . . . . . . . . . . . . . . . . . . . . . Combat . | . . . . . . . . . . . . . . . . . . . . . . . . . . Robot Hacks Applied . | . . . . . . . . . . . . . . . . . . . . . . . . . . Relay Couplers Released 3 | . . . . . . . . . . . . . . . . . . . . . . . 3 . . Programmers 3 | . . . . . . . . . . . . . . . . . . . . . . . 3 . . Robots Rewired 11 | . . . . . . . . . . 4 . . . . . . . . . . 7 . . . . Allies Hacked . | . . . . . . . . . . . . . . . . . . . . . . . . . . Hacks Repelled . | . . . . . . . . . . . . . . . . . . . . . . . . . . Allies | -11 -10 -10 -9 -9 -9 -8 -8 -7 -6 -6 -6 -6 -5 -5 -5 -5 -5 -4 -4 -3 -3 -3 -2 -2 -2 -------- Run | Scr Mat Min Mat Min Exi Min Mat Fac Fac Low Low Dat Pro Fac Upp Upp Zhi Pro Fac Res Arm Lab Res Qua Sec Total Allies 21 | . . . . . 3 . . . . 4 . . . . . . . . 1 . 7 . . . 6 Largest Group 7 | . . . . . 3 . . . . 4 4 3 . . . . . . 1 . 7 . . . 6 Highest-Rated Group 356 | . . . . . 74 . . . . 95 95 70 . . . . . . 10 . 356 . . . 86 Highest-Rated Ally 60 | . . . . . 36 . . . . 25 25 25 . . . . . . 10 . 60 . . . 15 Total Orders . | . . . . . . . . . . . . . . . . . . . . . . . . . . Ally Attacks 152 | . . . . . 37 . . . . . 16 . . . . . . . . . 82 . . . 17 Total Damage 5496 | . . . . . 1456 . . . . . 438 . . . . . . . . . 3243 . . . 359 Kills 34 | . . . . . 10 . . . . . 4 . . . . . . . . . 20 . . . . Allies Corrupted 1 | . . . . . . . . . . . . . . . . . . . . . 1 . . . . Allies Melted 1 | . . . . . . . . . . . . . . . . 1 . . . . . . . . . Turrets Deployed 2 | . . . . . 2 . . . . . . . . . . . . . . . . . . . . Field Lobotomies 3 | . . . . . 3 . . . . . . . . . . . . . . . . . . . . Intel | -11 -10 -10 -9 -9 -9 -8 -8 -7 -6 -6 -6 -6 -5 -5 -5 -5 -5 -4 -4 -3 -3 -3 -2 -2 -2 ------- Run | Scr Mat Min Mat Min Exi Min Mat Fac Fac Low Low Dat Pro Fac Upp Upp Zhi Pro Fac Res Arm Lab Res Qua Sec Robot Analysis Total 7 | . 2 . . . . . . . . . . . . . . . 4 . 1 . . . . . . Derelict Logs Recovered 11 | . . 1 . . . . . . . 1 1 . 1 . 3 2 . 2 . . . . . . . Drone Launches . | . . . . . . . . . . . . . . . . . . . . . . . . . . Drone Recoveries . | . . . . . . . . . . . . . . . . . . . . . . . . . . Exploration | -11 -10 -10 -9 -9 -9 -8 -8 -7 -6 -6 -6 -6 -5 -5 -5 -5 -5 -4 -4 -3 -3 -3 -2 -2 -2 ------------- Run | Scr Mat Min Mat Min Exi Min Mat Fac Fac Low Low Dat Pro Fac Upp Upp Zhi Pro Fac Res Arm Lab Res Qua Sec Turns Passed 23872 | 72 752 497 1334 414 2417 405 311 988 533 972 517 635 541 837 1180 2665 767 1625 691 303 1512 17 1775 1071 1041 Spaces Moved 11238 | 45 375 286 671 231 1068 181 142 446 270 379 262 214 249 388 609 1410 355 792 392 182 558 9 685 584 455 Core 133 | 10 . . . . . . . . . . . . . . . . . . . . . . . 123 . Treads 8833 | 35 375 286 671 231 1068 181 142 446 270 379 262 214 249 388 609 1410 198 . . . 325 9 685 47 353 Legs 2213 | . . . . . . . . . . . . . . . . . 157 792 392 182 233 . . 414 43 Wheels 59 | . . . . . . . . . . . . . . . . . . . . . . . . . 59 Hover . | . . . . . . . . . . . . . . . . . . . . . . . . . . Flight . | . . . . . . . . . . . . . . . . . . . . . . . . . . Fastest Speed 50 | 50 160 160 160 180 160 200 180 180 180 180 183 180 180 180 180 180 130 130 110 110 110 210 145 50 140 Average Speed 165 | 135 160 160 163 180 197 200 180 180 180 180 183 181 180 180 180 180 162 130 137 124 154 210 155 109 150 Slowest Speed 240 | 160 160 160 180 180 200 200 180 200 180 183 183 183 180 180 180 180 240 160 160 140 210 210 210 190 185 Overloaded Moves . | . . . . . . . . . . . . . . . . . . . . . . . . . . Propulsion Burnouts . | . . . . . . . . . . . . . . . . . . . . . . . . . . Robots Hopped . | . . . . . . . . . . . . . . . . . . . . . . . . . . Cave-ins Triggered 1 | . . . . . . . . . . . . . . . . . . . . . . . . . 1 Teleports 6 | . . . . . . . . . . . . . . . . . . . . . 1 . . 3 2 Exploration Rate (%) 45 | 4 58 68 53 77 89 46 16 16 8 59 49 81 47 12 76 95 62 79 14 9 38 5 31 61 25 Regions Visited 25 Branch Regions 16 Pre-discovered Areas 12 | . 2 1 . . 1 . . 1 . . . 1 . . 2 1 3 . . . . . . . . Known Exits Taken 13 | . 1 . . . . . . . 1 . . . 1 1 1 1 1 1 1 1 1 1 1 . . Unknown Exits Taken 12 | 1 . 1 1 1 1 1 1 1 . 1 1 1 . . . . . . . . . . . 1 . Scrap Searched 14 | . . . . 1 . 2 . . . 1 . . 2 . 2 3 . 3 . . . . . . . Spaces Dug 231 | . . 14 . . . 60 17 . . . . 1 . 10 52 1 . 54 2 1 . . 3 3 13 Terrain Destroyed 857 | . . 14 . . 3 119 17 11 . 67 . 1 28 100 105 91 6 165 15 2 39 . 44 6 24 Melee 4 | . . . . . . . . . . . . 1 . . . . . . . . . . . 3 . Projectile 111 | . . . . . . . . . . 1 . . 2 20 3 6 6 7 15 2 2 . 20 3 24 AOE 742 | . . 14 . . 3 119 17 11 . 66 . . 26 80 102 85 . 158 . . 37 . 24 . . Terrain Rammed . | . . . . . . . . . . . . . . . . . . . . . . . . . . Walls Destroyed . | . . . . . . . . . . . . . . . . . . . . . . . . . . Machines Disabled . | . . . . . . . . . . . . . . . . . . . . . . . . . . Actions | -11 -10 -10 -9 -9 -9 -8 -8 -7 -6 -6 -6 -6 -5 -5 -5 -5 -5 -4 -4 -3 -3 -3 -2 -2 -2 --------- Run | Scr Mat Min Mat Min Exi Min Mat Fac Fac Low Low Dat Pro Fac Upp Upp Zhi Pro Fac Res Arm Lab Res Qua Sec Total 14967 | 54 446 315 794 230 1275 205 175 587 302 627 287 386 312 478 661 1478 468 1349 505 249 978 8 1158 975 665 Wait 1837 | . 8 1 24 . 105 . . 65 1 181 1 91 31 30 5 13 7 537 74 54 174 . 110 270 55 Move 11214 | 44 374 285 670 230 1067 180 141 445 269 378 261 213 248 387 608 1409 354 791 391 182 557 8 684 583 455 Hop . | . . . . . . . . . . . . . . . . . . . . . . . . . . Pick Up 198 | 4 6 8 9 . 18 3 7 17 4 5 5 8 4 4 11 4 16 . 3 3 23 . 21 7 8 Fast Attach 161 | 4 1 1 5 . 3 3 4 7 4 3 . 4 1 4 . 3 9 . 2 . 30 . 20 28 25 Attach 124 | 2 1 1 2 . 8 3 3 9 4 1 1 7 2 5 1 1 8 1 3 2 11 . 27 10 11 Detach 27 | . . . . . 1 . 2 1 1 . . . . 1 . . 3 . . . 3 . 7 5 3 Swap 161 | . 4 5 9 . 1 . . 2 2 15 8 4 5 7 11 17 4 9 6 1 7 . 37 2 5 Drop 227 | . 2 7 15 . 15 1 1 16 7 9 5 8 4 5 11 7 20 . 3 . 26 . 28 24 13 Fire 841 | . 46 6 55 . 57 15 17 25 6 16 6 3 13 31 14 24 39 11 23 7 97 . 220 21 89 Melee 63 | . . . . . . . . . . . . 48 . . . . . . . . . . . 15 . Ram . | . . . . . . . . . . . . . . . . . . . . . . . . . . Kick . | . . . . . . . . . . . . . . . . . . . . . . . . . . Crush 24 | . 4 1 5 . . . . . 4 . . . . 2 . . . . . . 3 . 4 . 1 Escape Stasis 20 | . . . . . . . . . . . . . . 2 . . . . . . 8 . . 10 . Rewire 59 | . . . . . . . . . . 19 . . . . . . 1 . . . 39 . . . . Trap 11 | . . . . . . . . . . . . . 4 . . . 7 . . . . . . . . Miscellaneous . | . . . . . . . . . . . . . . . . . . . . . . . . . . Route ------- -11/Scrapyard -10/Materials (discovered 3 exits: *Mat x2 / *Min) -10/Mines -9/Materials (discovered 4 exits: [*Mat x2] / [*Min x2]) -9/Mines (discovered 2 exits: [*Mat] / *Exi) -9/Exiles -8/Mines -8/Materials -7/Factory (discovered 2 exits: *Fac / [*Low]) -6/Factory (discovered 2 exits: *Low x2) -6/Lower Caves -6/Lower Caves -6/Data Miner -5/Proximity Caves -5/Factory (discovered 4 exits: Fac x2 / *Upp / Ext) -5/Upper Caves -5/Upper Caves (discovered 2 exits: *Fac / *Zhi) -5/Zhirov -4/Proximity Caves -4/Factory (discovered 6 exits: *Res x4 / Upp x2) -3/Research (discovered 2 exits: *Res / *Arm) -3/Armory -3/Lab -2/Research (discovered 3 exits: *Acc / *Qua x2) -2/Quarantine (discovered 2 exits: *Acc / *Sec) -2/Section 7 History --------- Turn | Location | Event 3 | -11/Scrapyard | Discovered new exit (range 16) 73 | -11/Scrapyard | Entered Materials 237 | -10/Materials | Discovered new exit (range 4) 256 | -10/Materials | Identified exit to Mines 312 | -10/Materials | Build established: Mutant 492 | -10/Materials | Discovered new exit (range 3) 825 | -10/Materials | Entered Mines 908 | -10/Mines | Found a damaged Exp. Sensor Array with a note attached 911 | -10/Mines | Found Prototype Device 1215 | -10/Mines | Met a Derelict who couldn't figure out how to use a Trap Extractor 1284 | -10/Mines | Discovered new exit (range 8) 1322 | -10/Mines | Entered Materials 1322 | -9/Materials | Evolved 2 slots: Utility x1, Weapon x1 1363 | -9/Materials | Discovered new exit (range 15) 1474 | -9/Materials | Identified Exp. Sensor Array 1522 | -9/Materials | Discovered new exit (range 16) 1770 | -9/Materials | Build established: Scavenger-Tank 2296 | -9/Materials | Discovered new exit (range 16) 2420 | -9/Materials | Discovered new exit (range 5) 2656 | -9/Materials | Entered Mines 2674 | -9/Mines | Discovered new exit (range 8) 2770 | -9/Mines | Received a Rocket Launcher from a helpful Derelict 3063 | -9/Mines | Deemed a non-threat by the Exiles lab entrance 3063 | -9/Mines | Discovered new exit (range 5) 3070 | -9/Mines | Entered Exiles 3112 | -9/Exiles | Met 8R-AWN 3141 | -9/Exiles | Met EX-HEX 3222 | -9/Exiles | Met EX-DEC 3409 | -9/Exiles | Learned location of Zion (-7) 3573 | -9/Exiles | Build established: Hauler-Tank 3613 | -9/Exiles | Met EX-BIN 3641 | -9/Exiles | Aligned with FarCom system 3643 | -9/Exiles | Given EX-Vault access code 3689 | -9/Exiles | Opened EX-Vault 3699 | -9/Exiles | Found Deploy-a-Sentry 3702 | -9/Exiles | Found Deploy-a-Sentry 3705 | -9/Exiles | Found Deploy-a-Sentry 3708 | -9/Exiles | Found Field Lobotomy Kit 3747 | -9/Exiles | Warned to stay clear of 0b10 Research branches 4222 | -9/Exiles | Attacked by the Exiles 4257 | -9/Exiles | DAS Turret deployed 4404 | -9/Exiles | DAS Turret deployed 4423 | -9/Exiles | Allies destroyed 8R-AWN 4425 | -9/Exiles | Lost 5 parts (1p2n2w) 4522 | -9/Exiles | Assimilated DAS Turret with FLK Orb 4594 | -9/Exiles | Destroyed EX-BIN 4618 | -9/Exiles | Destroyed EX-HEX 4620 | -9/Exiles | Assimilated 5L-KAT with FLK Orb 4623 | -9/Exiles | Assimilated ZX-C33 with FLK Orb 4641 | -9/Exiles | Build established: Hauler-Mutant 4647 | -9/Exiles | Destroyed EX-DEC 5156 | -9/Exiles | Found Prototype Device 5469 | -9/Exiles | Discovered new exit (range 10) 5487 | -9/Exiles | Entered Mines 5487 | -8/Mines | Accompanied by 1 ally 5490 | -8/Mines | Core integrity fell below 50% 5830 | -8/Mines | Discovered new exit (range 10) 5892 | -8/Mines | Entered Materials 5892 | -8/Materials | Evolved 2 slots: Propulsion x1, Weapon x1 6174 | -8/Materials | Discovered new exit (range 4) 6203 | -8/Materials | Entered Factory 6203 | -7/Factory | Evolved 2 slots: Utility x2 6282 | -7/Factory | Build established: Scavenger-Tank 6418 | -7/Factory | Fabricated Imp. Force Field (x2) 6497 | -7/Factory | Local fabrication network quarantined 6651 | -7/Factory | Discovered new exit (range 16) 6725 | -7/Factory | Repaired Missile Launcher 6839 | -7/Factory | Build established: Scavenger-Gunner 6858 | -7/Factory | Discovered new exit (range 16) 7191 | -7/Factory | Entered another Factory area 7191 | -6/Factory | Evolved 2 slots: Power x1, Utility x1 7215 | -6/Factory | Found Prototype Launcher 7215 | -6/Factory | Identified Rocket Array 7220 | -6/Factory | Identified System Purifier 7222 | -6/Factory | Found Rocket Array 7345 | -6/Factory | Build established: Gunner 7441 | -6/Factory | Identified exit to Lower Caves 7724 | -6/Factory | Entered Lower Caves 7781 | -6/Lower Caves | Attracted the attention of an 0b10 checkpoint 8190 | -6/Lower Caves | Learned 8 Factory zone layouts 8441 | -6/Lower Caves | Attacked by a delusional Derelict stockpiling Unaware 8553 | -6/Lower Caves | Encountered a Warlord checkpoint 8656 | -6/Lower Caves | Build established: Scavenger-Tank 8681 | -6/Lower Caves | Discovered new exit (range 8) 8696 | -6/Lower Caves | Entered another Lower Caves area 8696 | -6/Lower Caves | Accompanied by 4 allies 8792 | -6/Lower Caves | Attacked by a delusional Derelict stockpiling parts 9189 | -6/Lower Caves | Discovered new exit (range 9) 9213 | -6/Lower Caves | Entered Data Miner 9213 | -6/Data Miner | Accompanied by 3 allies 9213 | -6/Data Miner | Discovered new exit (range 6) 9248 | -6/Data Miner | Met Data Miner 9296 | -6/Data Miner | Learned location of Section 7 (-2) 9296 | -6/Data Miner | Acquired the access code to Warlord's prototype stash 9312 | -6/Data Miner | Received God Mode back door access code from Data Miner 9339 | -6/Data Miner | Destroyed Data Miner 9343 | -6/Data Miner | Data Conduit disabled 9584 | -6/Data Miner | Lost 4 parts (1n2u1w) 9616 | -6/Data Miner | Build established: Scavenger-Mutant 9707 | -6/Data Miner | Found Prototype Hackware 9848 | -6/Data Miner | Entered Proximity Caves 9880 | -5/Proximity Caves | Learned Factory stockpile data 9930 | -5/Proximity Caves | Spotted B-75 Beast 9952 | -5/Proximity Caves | Destroyed B-75 Beast 9988 | -5/Proximity Caves | Build established: Scavenger-Tank 10361 | -5/Proximity Caves | Discovered new exit (range 16) 10388 | -5/Proximity Caves | Identified exit to Factory 10389 | -5/Proximity Caves | Entered Factory 10389 | -5/Factory | Evolved 2 slots: Propulsion x1, Utility x1 10390 | -5/Factory | Identified exit to Upper Caves 10391 | -5/Factory | Identified exit to Factory 10391 | -5/Factory | Identified exit to Extension 10942 | -5/Factory | Found Prototype Processor 10942 | -5/Factory | Identified Exp. Signal Interpreter 11136 | -5/Factory | Identified Ghost Barrier 11226 | -5/Factory | Entered Upper Caves 11460 | -5/Upper Caves | Learned location of Armory (-3) 11826 | -5/Upper Caves | Build established: Scavenger-Skirmisher 12350 | -5/Upper Caves | Attracted the attention of an 0b10 outpost 12377 | -5/Upper Caves | Discovered new exit (range 14) 12390 | -5/Upper Caves | Destroyed 8 combat bots 12404 | -5/Upper Caves | Identified exit to Upper Caves 12406 | -5/Upper Caves | Entered another Upper Caves area 12706 | -5/Upper Caves | Discovered exit to Factory (range 10) 14127 | -5/Upper Caves | Learned Factory non-interactive machine intel 14153 | -5/Upper Caves | Discovered new exit (range 11) 15067 | -5/Upper Caves | Identified exit to Zhirov 15071 | -5/Upper Caves | Entered Zhirov 15071 | -5/Zhirov | Discovered new exit (range 3) 15104 | -5/Zhirov | Met Zhirov 15186 | -5/Zhirov | Learned location of Quarantine (-2) 15186 | -5/Zhirov | Learned location of Testing (-3) 15186 | -5/Zhirov | Learned location of Command (-1) 15197 | -5/Zhirov | Zhirov requested help retrieving the SGEMP Prototype 15259 | -5/Zhirov | Found Alien Artifact 15259 | -5/Zhirov | Identified Integrated Reactor 15259 | -5/Zhirov | Installed Integrated Reactor, increased core energy generation (+10) 15308 | -5/Zhirov | Build established: Scavenger-Mutant 15475 | -5/Zhirov | Found Alien Artifact 15527 | -5/Zhirov | Attacked by Zhirov 15532 | -5/Zhirov | Destroyed Zhirov 15594 | -5/Zhirov | Destroyed Perun 15688 | -5/Zhirov | Found Prototype Hackware 15690 | -5/Zhirov | Found Prototype Hackware 15694 | -5/Zhirov | Found Alien Artifact 15837 | -5/Zhirov | Identified exit to Proximity Caves 15838 | -5/Zhirov | Entered Proximity Caves 15914 | -4/Proximity Caves | Learned Research trap positions 15928 | -4/Proximity Caves | Learned Research security intel 16057 | -4/Proximity Caves | Attracted the attention of an 0b10 checkpoint 17088 | -4/Proximity Caves | Build established: Scavenger-Skirmisher 17201 | -4/Proximity Caves | Discovered exit to Factory (range 12) 17463 | -4/Proximity Caves | Entered Factory 17463 | -4/Factory | Evolved 2 slots: Utility x2 17464 | -4/Factory | Loaded intel: 204 non-interactive machine locations 17474 | -4/Factory | Identified Quantum Router 17476 | -4/Factory | Identified Deep Network Scanner 17699 | -4/Factory | Identified exit to Upper Caves 17699 | -4/Factory | Identified exit to Research 17757 | -4/Factory | Central database locked down 17809 | -4/Factory | Identified Transdimensional Reconstructor (x2) 17917 | -4/Factory | Fabricated Centrium Leg (x1) 17940 | -4/Factory | Build established: Wizard-Tank 17952 | -4/Factory | Fabricated Centrium Leg (x1) 18006 | -4/Factory | Fabricated Exp. Transmission Jammer (x1) 18150 | -4/Factory | Local fabrication network quarantined 18154 | -4/Factory | Entered Research 18154 | -3/Research | Evolved 2 slots: Utility x2 18155 | -3/Research | Identified exit to Armory 18156 | -3/Research | Loaded intel: 82 trap records 18282 | -3/Research | Discovered new exit (range 9) 18320 | -3/Research | Identified exit to Research 18457 | -3/Research | Entered Armory 18780 | -3/Armory | Fabricated Adv. Armor Integrity Analyzer (x1) 18830 | -3/Armory | Fabricated Hcp. Storage Unit (x1) 18846 | -3/Armory | Fabricated Hcp. Storage Unit (x1) 18867 | -3/Armory | Build established: Wizard-Skirmisher 18933 | -3/Armory | Lost 3 parts (1p1u1w) 18958 | -3/Armory | Fabricated Adv. Heavy Treads (x2) 19184 | -3/Armory | Build established: Wizard-Gunner 19250 | -3/Armory | First assault squad dispatched 19370 | -3/Armory | Lost 5 parts (1p1u3w) 19397 | -3/Armory | System corruption reached 10% 19605 | -3/Armory | Lost 6 parts (2n3u1w) 19913 | -3/Armory | Fabricated Powered Armor (x2) 19955 | -3/Armory | Fabricated Powered Armor (x2) 19966 | -3/Armory | Warped through subspace to slip node 19966 | -3/Armory | Discovered new exit (range 1) 19966 | -3/Armory | Identified exit to Lab 19969 | -3/Armory | Entered Lab 19969 | -3/Lab | Discovered exit to Research (range 9) 19986 | -3/Lab | Entered Research 19986 | -2/Research | Evolved 2 slots: Propulsion x2 20089 | -2/Research | Build established: Hauler-Tank 20201 | -2/Research | Spotted B-90 Cyclops 20312 | -2/Research | Destroyed B-90 Cyclops 20363 | -2/Research | Found Quantum Capacitor 20377 | -2/Research | Found Prototype Device 20377 | -2/Research | Identified Exp. Thermal Shield 20386 | -2/Research | Discovered new exit (range 16) 20410 | -2/Research | Identified exit to Access 20816 | -2/Research | System corruption reached 10% 20888 | -2/Research | Identified exit to Quarantine 21094 | -2/Research | Spotted B-90 Cyclops 21254 | -2/Research | Destroyed B-90 Cyclops 21278 | -2/Research | Lost 13 parts (1p3n2u7w) 21377 | -2/Research | Garrison activated, responded to threat 21428 | -2/Research | Destroyed 7 combat bots 21514 | -2/Research | Found Prototype Device 21514 | -2/Research | Identified EM Disruption Field 21519 | -2/Research | First assault squad dispatched 21520 | -2/Research | Found EM Disruption Field 21685 | -2/Research | Build established: Scavenger-Mutant 21761 | -2/Research | Entered Quarantine 21791 | -2/Quarantine | Lost 3 parts (1u2w) 21879 | -2/Quarantine | Warped through subspace 21908 | -2/Quarantine | Lost 6 parts (3n2u1w) 21912 | -2/Quarantine | Spotted Alpha 7 21926 | -2/Quarantine | Found Prototype Slashing Weapon 21926 | -2/Quarantine | Identified Molecular Scythe 21989 | -2/Quarantine | Core integrity fell below 50% 22011 | -2/Quarantine | First assault squad dispatched 22011 | -2/Quarantine | Destroyed Alpha 7 22017 | -2/Quarantine | Found Prototype Processor 22017 | -2/Quarantine | Identified Exp. Target Analyzer 22021 | -2/Quarantine | Found Prototype Processor 22021 | -2/Quarantine | Identified Exp. Targeting Computer 22031 | -2/Quarantine | Found Prototype Device 22031 | -2/Quarantine | Identified Exp. ECM Suite 22035 | -2/Quarantine | Lost 3 parts (3u) 22092 | -2/Quarantine | Found Transdimensional Reconstructor 22096 | -2/Quarantine | Found Transdimensional Reconstructor 22098 | -2/Quarantine | Found Transdimensional Reconstructor 22100 | -2/Quarantine | Found Alien Artifact 22101 | -2/Quarantine | Warped through subspace 22168 | -2/Quarantine | Discovered exit to Access (range 10) 22284 | -2/Quarantine | Warped through subspace 22301 | -2/Quarantine | Found Alien Artifact 22446 | -2/Quarantine | Spotted Fortress 22469 | -2/Quarantine | System corruption reached 30% 22510 | -2/Quarantine | Lost 9 parts (2p4n2u1w) 22554 | -2/Quarantine | Discovered new exit (range 7) 22832 | -2/Quarantine | Entered Section 7 22959 | -2/Section 7 | Spotted B-90 Cyclops 22963 | -2/Section 7 | Identified Subatomic Replicator 23002 | -2/Section 7 | Warped through subspace 23003 | -2/Section 7 | Core integrity fell below 20% 23090 | -2/Section 7 | Found Alien Artifact 23090 | -2/Section 7 | Identified Integrated Dissipator 23090 | -2/Section 7 | Installed Integrated Dissipator, increased core heat dissipation (+20) 23306 | -2/Section 7 | Found Alien Artifact 23306 | -2/Section 7 | Identified Core Reset Matrix 23306 | -2/Section 7 | Identified Hpw. Transdimensional Reconstructor 23306 | -2/Section 7 | Used Core Reset Matrix 23310 | -2/Section 7 | Emitted hypermatrix ping 23310 | -2/Section 7 | Sensed 18 artifacts in vicinity 23315 | -2/Section 7 | Assembled emerged from beneath the floor 23606 | -2/Section 7 | Warped through subspace 23756 | -2/Section 7 | Crushed by falling debris 23805 | -2/Section 7 | Used Subatomic Replicator to replicate Integrated Singularity Reactor 23806 | -2/Section 7 | Found Integrated Singularity Reactor 23806 | -2/Section 7 | Installed Integrated Singularity Reactor, increased core energy generation (+20) 23809 | -2/Section 7 | Installed Integrated Singularity Reactor, increased core energy generation (+20) 23873 | -2/Section 7 | Destroyed by H-88 Terminator with KE Penetrator Last Messages --------------- increased (+20). 23822_ TRA|BL=J/EMF Map ----- +----------------------------------------------------+ | ?????????????????????????????????????????????????? | | ?????????????????????????????????????????????????? | | ?????????????????????????????????????????????????? | | ?????????????????????????????????????????????????? | | ?????????????????????????????????????????????????? | | ?????????????????????????????????????????????????? | | ??????????????????????????????? ???????????????? | | ??????????????????????????????? #?????????????? | | ??????????????????????????????? +?????????????? | | ??????????????????????????????? #?????????????? | | ??????????????????????????????? #?????????????? | | ??????????????????????????????# #?????????????? | | ??????????????????????????????# #?????????????? | | ??????????????????????????????# #?????????????? | | ??????????????????????????????# #?????????????? | | ????????????? ????????????????# #?????????????? | | #???????????? ???????########## #?????????????? | | #???????????# ???????# ! =!|# #?????????????? | | #????????#### ???????# """*%#w #?????????????? | | #????????+ ???????# "" !*#c #?????????????? | | #????????# #??????# """*[R! #?????????????? | | #????????# ###????# | !%[=%# #?????????????? | | #???#+#??# #????# """!=# #?????????????? | | #???# #??# #????# """= # #?????????????? | | #???# #??# #????# """= # #?????????????? | | #???# #??# #????# ] @ !# #?????????????? | | ##### ##?# #????########## #?????????????? | | #?? #?????????????# #?????????????? | | #???# #?????????????# #?????????????? | | #???# ####??????????# #?????????????? | | #???# ## #??????????# [ #?????????????? | | ###### #???# # ############ #?????????????? | | ###+#####= " ##""""" # #?????????????? | | # # =%### #""""" # #?????????????? | | # "" + #?##### # # +?????????????? | | # """ # #?????###"""" + #?????????????? | | # " + #???????#" # #?????????????? | | # """ # #???????#"" # #?????????????? | | # "" #^^ ^#???????#" # ####?????????????? | | # # #???????######## #????????????????? | | ########### #??????????????# #????????????????? | | # #??????????????# #????????????????? | | "" # #??????????????# #????????????????? | | " + #??????????????# #????????????????? | | " """ # #??????????????# #????????????????? | | """!" # #??????????????# #????????????????? | | """"" # ################ #####????????????? | | # #????????????? | | ########### #????????????? | | ??????????# #????????????? | +----------------------------------------------------+ Best States ------------- Heat Dissipation 142 Coolant Potential 100 Energy Generation 113 Energy Capacity 1600 Matter Stores 300 Matter Capacity 600 Sight Range 16 Robot Scan Range 30 Terrain Scan Density 10 ECM Strength 5 Jamming Range 22 Power Amplification 40 EM Shielding 3 Armor Coverage 3200 Resistance: TH 30 Resistance: EM 50 Weapon Shielding 90 Melee Speed Boost 50 Evasion (%) 50 Targeting Accuracy 12 Target Analysis 12 Armor Integrity Analysis 66 Recoil Reduction 6 Particle Charging 30 Kinecelleration 40 Offensive Hacking 25 Defensive Hacking 45 Item Schematics ----------------- None Robot Schematics ------------------ None Fabricated ------------ Imp. Force Field | x2 | -7/Factory | Preloaded Centrium Leg | x1 | -4/Factory | Preloaded Centrium Leg | x1 | -4/Factory | Preloaded Exp. Transmission Jammer | x1 | -4/Factory Adv. Armor Integrity Analyzer | x1 | -3/Armory Hcp. Storage Unit | x1 | -3/Armory Hcp. Storage Unit | x1 | -3/Armory Adv. Heavy Treads | x2 | -3/Armory Powered Armor | x2 | -3/Armory Powered Armor | x2 | -3/Armory Alien Tech Used ----------------- Integrated Reactor Transdimensional Reconstructor Subatomic Replicator Integrated Dissipator Core Reset Matrix High-powered Transdimensional Reconstructor Integrated Singularity Reactor Achievements -------------- None Challenges ------------ None Game ------ Seed GuidanceScatterPick Manual? 0 Play Time 02:38:59 Cumulative 477.6 hours Start 2021.06.29 @ 12:49:16 End 2021.06.29 @ 15:42:04 Sessions 1 Manual Loads 0 Difficulty Rogue Special Mode None Game No. 357 Rogue 350 Adventurer 0 Explorer 7 Win Type - Total 22 Types 8/3/9/1/0/0/0/1/0 Lore% 86 Gallery% 94 Achievement% 80 Wizard Run 0 Options --------- ASCII 0 Keyboard 0 Movement Numpad Keybinds 0 Fullscreen 1 Font 18/X11Bold Map View 76x50 Tactical HUD 1 Map Filters NONE Filters NONE Steam 1 RUN: 4169598c-ad2e-49b3-8675-cde41314bd06